fUST/lending_fUST_20241007
["ID","MTS","AMOUNT","RATE_DAILY","PERIOD"]
[339966286,1728238247341,-1000.905524,0.00013678,2]
[339966287,1728238247351,-1000.905524,0.00013678,2]
[339966288,1728238247361,-151.0,0.00013678,2]
[339966289,1728238247372,-151.0,0.00013678,2]
[339966290,1728238247383,-151.0,0.00013678,2]
[339966291,1728238247394,-151.0,0.00013678,2]
[339966292,1728238247405,-151.0,0.00013678,2]
[339966293,1728238247415,-151.0,0.00013678,2]
[339966294,1728238247426,-151.0,0.00013678,2]
[339966295,1728238247437,-151.0,0.00013678,2]
[339966296,1728238247449,-151.0,0.00013678,2]
[339966297,1728238247459,-151.0,0.00013678,2]
[339966298,1728238247469,-151.0,0.00013678,2]
[339966299,1728238247479,-153.34922,0.00013678,2]
[339966300,1728238247489,-151.0,0.00013678,2]
[339966301,1728238247499,-151.0,0.00013678,2]
[339966302,1728238247509,-151.0,0.00013678,2]
[339966303,1728238247521,-151.0,0.00013678,2]
[339966304,1728238247531,-153.800932,0.00013678,2]
[339966305,1728238247542,-153.800932,0.00013678,2]
[339966306,1728238247555,-151.0,0.00013678,2]
[339966307,1728238247565,-151.0,0.00013678,2]
[339966308,1728238247575,-153.800932,0.00013678,2]
[339966309,1728238247586,-153.800932,0.00013678,2]
[339966310,1728238247596,-151.0,0.00013678,2]
[339966311,1728238247607,-151.0,0.00013678,2]
[339966312,1728238247617,-151.0,0.00013678,2]
[339966313,1728238247628,-151.0,0.00013678,2]
[339966314,1728238247638,-282.127192,0.00013678,2]
[339966315,1728238247648,-151.0,0.00013678,2]
[339966316,1728238247658,-151.0,0.00013678,2]
[339966317,1728238247668,-151.0,0.00013678,2]
[339966318,1728238247679,-151.0,0.00013678,2]
[339966319,1728238247690,-912.053632,0.00013678,2]
[339966320,1728238247701,-151.0,0.00013678,2]
[339966321,1728238247713,-912.053632,0.00013678,2]
[339966322,1728238247723,-912.053632,0.00013678,2]
[339966323,1728238247734,-912.053632,0.00013678,2]
[339966324,1728238247744,-912.053632,0.00013678,2]
[339966325,1728238247754,-912.053632,0.00013678,2]
[339966326,1728238247766,-965.40047,0.00013678,2]
[339966327,1728238247777,-965.40047,0.00013678,2]
[339966328,1728238247786,-965.40047,0.00013678,2]
[339966329,1728238247795,-965.40047,0.00013678,2]
[339966330,1728238247806,-965.40047,0.00013678,2]
[339966331,1728238247816,-965.40047,0.00013678,2]
[339966332,1728238247825,-438.35171,0.00013678,2]
[339966333,1728238247834,-438.35171,0.00013678,2]
[339966334,1728238247843,-438.35171,0.00013678,2]
[339966335,1728238247853,-438.35171,0.00013678,2]
[339966336,1728238247862,-438.35171,0.00013678,2]
[339966337,1728238247871,-438.35171,0.00013678,2]
[339966338,1728238247881,-438.35171,0.00013678,2]
[339966339,1728238247890,-438.35171,0.00013678,2]
[339966340,1728238247899,-151.0,0.00013678,2]
[339966341,1728238247908,-151.0,0.00013678,2]
[339966342,1728238247918,-151.0,0.00013678,2]
[339966343,1728238247927,-151.0,0.00013678,2]
[339966344,1728238247936,-151.403589,0.00013678,2]
[339966345,1728238247945,-151.0,0.00013678,2]
[339966346,1728238247954,-151.0,0.00013678,2]
[339966347,1728238247963,-151.0,0.00013678,2]
[339966348,1728238247973,-151.0,0.00013678,2]
[339966349,1728238247982,-151.0,0.00013678,2]
[339966350,1728238247992,-151.0,0.00013678,2]
[339966351,1728238248001,-151.0,0.00013678,2]
[339966352,1728238248011,-151.0,0.00013678,2]
[339966353,1728238248021,-3212.902921,0.00013678,2]
[339966354,1728238248032,-3212.902921,0.00013678,2]
[339966355,1728238248041,-151.0,0.00013678,2]
[339966356,1728238248050,-151.0,0.00013678,2]
[339966357,1728238248059,-3212.902921,0.00013678,2]
[339966358,1728238248068,-3212.902921,0.00013678,2]
[339966359,1728238248078,-658.608408,0.00013678,2]
[339966360,1728238248087,-658.608408,0.00013678,2]
[339966361,1728238248097,-151.0,0.00013678,2]
[339966362,1728238248106,-658.608408,0.00013678,2]
[339966363,1728238248116,-658.608408,0.00013678,2]
[339966364,1728238248125,-1817.949947,0.00013678,2]
[339966365,1728238248135,-1817.949947,0.00013678,2]
[339966366,1728238248145,-1817.949947,0.00013678,2]
[339966367,1728238248154,-1817.949947,0.00013678,2]
[339966368,1728238248163,-310.431954,0.00013678,2]
[339966369,1728238248172,-310.431954,0.00013678,2]
[339966370,1728238248181,-310.431954,0.00013678,2]
[339966371,1728238248191,-310.431954,0.00013678,2]
[339966372,1728238248201,-151.0,0.00013678,2]
[339966373,1728238248211,-151.0,0.00013678,2]
[339966374,1728238248221,-191.385428,0.00013678,2]
[339966375,1728238248231,-191.385428,0.00013678,2]
[339966376,1728238248241,-151.0,0.00013678,2]
[339966377,1728238248251,-151.0,0.00013678,2]
[339966378,1728238248260,-291.861932,0.00013678,2]
[339966379,1728238248270,-291.861932,0.00013678,2]
[339966380,1728238248280,-701.854378,0.00013678,2]
[339966381,1728238248289,-701.854378,0.00013678,2]
[339966382,1728238248299,-447.526401,0.00013678,2]
[339966383,1728238248308,-701.854378,0.00013678,2]
[339966384,1728238248318,-701.854378,0.00013678,2]
[339966385,1728238248328,-447.526401,0.00013678,2]
[339966386,1728238248337,-1292.088652,0.00013678,2]
[339966387,1728238248347,-1292.088652,0.00013678,2]
[339966388,1728238248356,-151.0,0.00013678,2]
[339966389,1728238248366,-151.0,0.00013678,2]
[339966390,1728238248376,-151.0,0.00013678,2]
[339966391,1728238248386,-151.0,0.00013678,2]
[339966392,1728238248398,-151.0,0.00013678,2]
[339966393,1728238248408,-151.0,0.00013678,2]
[339966394,1728238248418,-151.0,0.00013678,2]
[339966395,1728238248428,-151.0,0.00013678,2]
[339966396,1728238248437,-151.0,0.00013678,2]
[339966397,1728238248447,-151.0,0.00013678,2]
[339966398,1728238248460,-2098.258688,0.00013678,2]
[339966399,1728238248470,-2098.258688,0.00013678,2]
[339966400,1728238248480,-2098.258688,0.00013678,2]
[339966401,1728238248490,-2098.258688,0.00013678,2]
[339966402,1728238248500,-458.693008,0.00013678,2]
[339966403,1728238248510,-458.693008,0.00013678,2]
[339966404,1728238248520,-458.693008,0.00013678,2]
[339966405,1728238248530,-458.693008,0.00013678,2]
[339966406,1728238248540,-19122.8883281,0.00013678,2]
[339966407,1728238248550,-1000.905524,0.00013688,2]
[339966408,1728238248559,-1000.905524,0.00013688,2]
[339966409,1728238248569,-151.0,0.00013688,2]
[339966410,1728238248580,-151.0,0.00013688,2]
[339966411,1728238248589,-151.0,0.00013688,2]
[339966412,1728238248599,-151.0,0.00013688,2]
[339966413,1728238248611,-151.0,0.00013688,2]
[339966414,1728238248621,-151.0,0.00013688,2]
[339966415,1728238248631,-151.0,0.00013688,2]
[339966416,1728238248641,-151.0,0.00013688,2]
[339966417,1728238248650,-151.0,0.00013688,2]
[339966418,1728238248660,-151.0,0.00013688,2]
[339966419,1728238248670,-151.0,0.00013688,2]
[339966420,1728238248682,-151.0,0.00013688,2]
[339966421,1728238248692,-151.0,0.00013688,2]
[339966422,1728238248702,-151.0,0.00013688,2]
[339966423,1728238248713,-237.552598,0.00013688,2]
[339966424,1728238248723,-237.552598,0.00013688,2]
[339966425,1728238248732,-151.295206,0.00013688,2]
[339966426,1728238248742,-151.0,0.00013688,2]
[339966427,1728238248751,-151.0,0.00013688,2]
[339966428,1728238248761,-151.0,0.00013688,2]
[339966429,1728238248771,-151.0,0.00013688,2]
[339966430,1728238248780,-405.388613,0.00013688,2]
[339966431,1728238248791,-405.388613,0.00013688,2]
[339966432,1728238248802,-405.388613,0.00013688,2]
[339966433,1728238248979,-405.388613,0.00013688,2]
[339966434,1728238248988,-151.0,0.00013688,2]
[339966435,1728238248999,-235.962846,0.00013688,2]
[339966436,1728238249008,-151.0,0.00013688,2]
[339966437,1728238249018,-151.0,0.00013688,2]
[339966438,1728238249028,-151.0,0.00013688,2]
[339966439,1728238249038,-151.0,0.00013688,2]
[339966440,1728238249047,-151.0,0.00013688,2]
[339966441,1728238249057,-151.0,0.00013688,2]
[339966442,1728238249067,-232.627261,0.00013688,2]
[339966443,1728238249076,-151.0,0.00013688,2]
[339966444,1728238249086,-151.0,0.00013688,2]
[339966445,1728238249096,-151.0,0.00013688,2]
[339966446,1728238249106,-151.0,0.00013688,2]
[339966447,1728238249115,-153.800932,0.00013688,2]
[339966448,1728238249124,-153.800932,0.00013688,2]
[339966449,1728238249134,-151.0,0.00013688,2]
[339966450,1728238249144,-151.0,0.00013688,2]
[339966451,1728238249153,-153.800932,0.00013688,2]
[339966452,1728238249163,-1275.526914,0.00013688,2]
[339966453,1728238249173,-1275.526914,0.00013688,2]
[339966454,1728238249183,-153.800932,0.00013688,2]
[339966455,1728238249192,-1618.243536,0.00013688,2]
[339966456,1728238249202,-1618.243536,0.00013688,2]
[339966457,1728238249214,-1618.243536,0.00013688,2]
[339966458,1728238249224,-1618.243536,0.00013688,2]
[339966459,1728238249233,-151.0,0.00013688,2]
[339966460,1728238249243,-151.0,0.00013688,2]
[339966461,1728238249253,-151.0,0.00013688,2]
[339966462,1728238249263,-912.053632,0.00013688,2]
[339966463,1728238249272,-275.93961,0.00013688,2]
[339966464,1728238249282,-912.053632,0.00013688,2]
[339966465,1728238249291,-912.053632,0.00013688,2]
[339966466,1728238249302,-912.053632,0.00013688,2]
[339966467,1728238249311,-965.40047,0.00013688,2]
[339966468,1728238249322,-965.40047,0.00013688,2]
[339966469,1728238249332,-965.40047,0.00013688,2]
[339966470,1728238249342,-965.40047,0.00013688,2]
[339966471,1728238249354,-438.35171,0.00013688,2]
[339966472,1728238249364,-438.35171,0.00013688,2]
[339966473,1728238249375,-438.35171,0.00013688,2]
[339966474,1728238249386,-438.35171,0.00013688,2]
[339966475,1728238249395,-151.0,0.00013688,2]
[339966476,1728238249406,-151.0,0.00013688,2]
[339966477,1728238249417,-151.0,0.00013688,2]
[339966478,1728238249427,-151.0,0.00013688,2]
[339966479,1728238249437,-151.0,0.00013688,2]
[339966480,1728238249447,-151.0,0.00013688,2]
[339966481,1728238249457,-151.0,0.00013688,2]
[339966482,1728238249467,-151.0,0.00013688,2]
[339966483,1728238249476,-151.0,0.00013688,2]
[339966484,1728238249485,-3212.902921,0.00013688,2]
[339966485,1728238249495,-3212.902921,0.00013688,2]
[339966486,1728238249505,-151.0,0.00013688,2]
[339966487,1728238249517,-151.0,0.00013688,2]
[339966488,1728238249527,-3212.902921,0.00013688,2]
[339966489,1728238249538,-3212.902921,0.00013688,2]
[339966490,1728238249554,-658.608408,0.00013688,2]
[339966491,1728238249565,-658.608408,0.00013688,2]
[339966492,1728238249574,-658.608408,0.00013688,2]
[339966493,1728238249584,-658.608408,0.00013688,2]
[339966494,1728238249594,-1817.949947,0.00013688,2]
[339966495,1728238249604,-1817.949947,0.00013688,2]
[339966496,1728238249614,-1817.949947,0.00013688,2]
[339966497,1728238249625,-1228.88778202,0.00013688,2]
[339966498,1728238249641,-589.06216498,0.00013688,2]
[339966499,1728238249650,-310.431954,0.00013688,2]
[339966500,1728238249660,-310.431954,0.00013688,2]
[339966501,1728238249670,-310.431954,0.00013688,2]
[339966502,1728238249680,-310.431954,0.00013688,2]
[339966503,1728238249689,-151.0,0.00013688,2]
[339966504,1728238249699,-151.0,0.00013688,2]
[339966505,1728238249709,-202.640469,0.00013688,2]
[339966506,1728238249718,-191.385428,0.00013688,2]
[339966507,1728238249728,-191.385428,0.00013688,2]
[339966508,1728238249737,-191.385428,0.00013688,2]
[339966509,1728238249748,-191.385428,0.00013688,2]
[339966510,1728238249758,-151.0,0.00013688,2]
[339966511,1728238249768,-151.0,0.00013688,2]
[339966512,1728238249777,-151.0,0.00013688,2]
[339966513,1728238249787,-151.0,0.00013688,2]
[339966514,1728238249797,-291.861932,0.00013688,2]
[339966515,1728238249806,-291.861932,0.00013688,2]
[339966516,1728238249816,-291.861932,0.00013688,2]
[339966517,1728238249825,-701.854378,0.00013688,2]
[339966518,1728238249835,-291.861932,0.00013688,2]
[339966519,1728238249845,-701.854378,0.00013688,2]
[339966520,1728238249855,-447.526401,0.00013688,2]
[339966521,1728238249865,-447.526401,0.00013688,2]
[339966522,1728238249874,-701.854378,0.00013688,2]
[339966523,1728238249884,-175.75630522,0.00013688,2]
[339966544,1728239317250,18803.46474308,0.0001,2]
[339966548,1728239346150,-911.4237601,0.0001161,2]
[339966607,1728239431779,-1966.0091583,0.0001161,2]
[339966609,1728239431790,-1010.5039391,0.00011757,2]
[339966611,1728239431799,-100.26881838,0.00011845,2]
[339966613,1728239431810,-636.53625817,0.00011845,2]
[339966615,1728239431821,-795.69529847,0.00011845,2]
[339966710,1728239437882,-51.14499838,0.00011845,2]
[339966711,1728239437893,-169.267319,0.00011908,2]
[339966712,1728239437902,-169.267319,0.00011986,2]
[339966713,1728239437911,-169.267319,0.00012063,2]
[339966714,1728239437921,-169.267319,0.00012141,2]
[339966715,1728239437931,-169.267319,0.00012219,2]
[339966716,1728239437941,-169.267319,0.00012296,2]
[339966717,1728239437950,-169.267319,0.00012374,2]
[339966718,1728239437960,-169.267319,0.00012451,2]
[339966719,1728239437970,-169.267319,0.00012529,2]
[339966720,1728239437980,-291.7453574,0.00012681,2]
[339966721,1728239437989,-300.0,0.00012687,2]
[339966722,1728239437999,-300.0,0.00012687,2]
[339966723,1728239438008,-939.88534376,0.00012688,2]
[339966724,1728239438021,-1570.57603495,0.00012688,2]
[339966725,1728239438038,-1959.08431308,0.00012688,2]
[339966726,1728239438047,-500.0,0.00012698,2]
[339966727,1728239438057,-500.0,0.00012698,2]
[339966728,1728239438066,-500.0,0.00012698,2]
[339966729,1728239438076,-500.0,0.00012698,2]
[339966730,1728239438085,-500.0,0.00012698,2]
[339966731,1728239438095,-500.0,0.00012698,2]
[339966732,1728239438108,-500.0,0.00012698,2]
[339966733,1728239438118,-500.0,0.00012698,2]
[339966734,1728239438136,-500.0,0.00012698,2]
[339966735,1728239438146,-500.0,0.00012698,2]
[339966736,1728239438156,-500.0,0.00012698,2]
[339966737,1728239438165,-500.0,0.00012698,2]
[339966738,1728239438175,-500.0,0.00012698,2]
[339966739,1728239438187,-500.0,0.00012698,2]
[339966740,1728239438198,-500.0,0.00012698,2]
[339966741,1728239438208,-500.0,0.00012698,2]
[339966742,1728239438218,-500.0,0.00012698,2]
[339966743,1728239438227,-500.0,0.00012698,2]
[339966744,1728239438236,-500.0,0.00012698,2]
[339966745,1728239438246,-500.0,0.00012698,2]
[339966746,1728239438255,-500.0,0.00012698,2]
[339966747,1728239438265,-500.0,0.00012698,2]
[339966748,1728239438275,-500.0,0.00012698,2]
[339966749,1728239438285,-500.0,0.00012698,2]
[339966750,1728239438295,-606.53,0.00012698,2]
[339966751,1728239438305,-1000.0,0.00012876,2]
[339966752,1728239438314,-243.458859,0.00013096,2]
[339966753,1728239438323,-195.86170526,0.00013173,2]
[339966754,1728239438333,-3589.57246543,0.00013173,2]
[339966755,1728239438346,-2498.19194941,0.00013173,2]
[339966756,1728239438355,-306.0,0.00013178,2]
[339966757,1728239438364,-2397.67365827,0.00013231,2]
[339966758,1728239438377,-160.0,0.00013331,3]
[339966759,1728239438387,-181.25192469,0.00013578,2]
[339966760,1728239438397,-2397.67365821,0.00013608,2]
[339966761,1728239438408,-151.0,0.00013668,2]
[339966762,1728239438417,-151.0,0.00013668,2]
[339966763,1728239438427,-1493.81538492,0.00013668,2]
[339966764,1728239438437,-18262.25165511,0.00013668,2]
[339966872,1728239442851,-623.72227902,0.00013668,2]
[339966873,1728239442864,-1562.9,0.00013668,2]
[339966874,1728239442880,-4840.77038241,0.00013668,2]
[339966881,1728240437144,-300.0,0.00011999,2]
[339966882,1728240437169,-300.0,0.00011999,2]
[339966883,1728240437193,-370.90005938,0.00012,2]
[339966884,1728240437216,-56151.81712898,0.00012,2]
[339966927,1728240631963,-209.74112589,0.00011962,2]
[339966929,1728240631974,-2694.24140543,0.00012,2]
[339966940,1728240632072,-259.08475321,0.00012,2]
[339967088,1728240640136,-1166.67762737,0.00012,2]
[339967089,1728240640147,-500.0,0.0001292,2]
[339967090,1728240640159,-249.41493,0.00013096,2]
[339967091,1728240640169,-153.0,0.000132,2]
[339967092,1728240640179,-153.0,0.000132,2]
[339967093,1728240640190,-153.0,0.000132,2]
[339967094,1728240640200,-153.0,0.000132,2]
[339967095,1728240640211,-150.0,0.00013276,2]
[339967096,1728240640221,-161.552496,0.00013297,2]
[339967097,1728240640231,-163.774884,0.00013297,2]
[339967098,1728240640240,-152.577357,0.00013297,2]
[339967099,1728240640250,-300.0,0.00013298,2]
[339967100,1728240640261,-300.0,0.00013298,2]
[339967101,1728240640271,-153.0,0.000133,2]
[339967102,1728240640282,-153.0,0.000133,2]
[339967103,1728240640294,-163.774884,0.00013463,2]
[339967104,1728240640305,-1000.0,0.00013486,2]
[339967105,1728240640315,-306.0,0.000135,2]
[339967106,1728240640326,-153.0,0.000135,2]
[339967107,1728240640338,-182.0,0.000135,2]
[339967108,1728240640350,-2149.58573203,0.000135,2]
[339967109,1728240640361,-161.552496,0.00013519,2]
[339967110,1728240640372,-152.577357,0.00013519,2]
[339967111,1728240640382,-150.0,0.00013565,2]
[339967112,1728240640394,-1000.0,0.00013567,2]
[339967113,1728240640405,-1000.0,0.00013567,2]
[339967114,1728240640417,-1000.0,0.00013589,2]
[339967115,1728240640428,-247.26670626,0.000136,2]
[339967116,1728240640439,-600.0,0.000136,2]
[339967117,1728240640451,-42633.62795215,0.000136,2]
[339967118,1728240640462,-153.0,0.000136,2]
[339967119,1728240640473,-153.0,0.000136,2]
[339967120,1728240640484,-163.774884,0.0001363,2]
[339967121,1728240640493,-1000.0,0.00013636,2]
[339967122,1728240640503,-514.57176425,0.00013649,2]
[339967123,1728240640512,-500.0,0.00013673,2]
[339967124,1728240640523,-500.0,0.00013673,2]
[339967125,1728240640532,-500.0,0.00013673,2]
[339967126,1728240640542,-500.0,0.00013673,2]
[339967127,1728240640551,-500.0,0.00013673,2]
[339967128,1728240640561,-500.0,0.00013673,2]
[339967129,1728240640571,-500.0,0.00013673,2]
[339967130,1728240640581,-500.0,0.00013673,2]
[339967131,1728240640592,-617.81017745,0.00013673,2]
[339967132,1728240640602,-2219.9157075,0.00013678,2]
[339967133,1728240640612,-24141.9531953,0.00013678,2]
[339967134,1728240640622,-27724.600795,0.00013678,2]
[339967135,1728240640632,-9126.76842634,0.00013678,2]
[339967136,1728240640642,-24141.9531953,0.00013678,2]
[339967137,1728240640653,-27724.600795,0.00013678,2]
[339967138,1728240640664,-571.82434811,0.00013687,2]
[339967139,1728240640674,-1218.0,0.00013687,2]
[339967140,1728240640686,-151.0,0.00013688,2]
[339967141,1728240640698,-447.41753,0.00013688,2]
[339967142,1728240640709,-213.797338,0.00013688,2]
[339967143,1728240640719,-151.0,0.00013688,2]
[339967144,1728240640730,-213.797338,0.00013688,2]
[339967145,1728240640740,-151.0,0.00013688,2]
[339967146,1728240640751,-151.0,0.00013688,2]
[339967147,1728240640761,-151.0,0.00013688,2]
[339967148,1728240640772,-395.165044,0.00013688,2]
[339967149,1728240640782,-179.025152,0.00013688,2]
[339967150,1728240640796,-395.165044,0.00013688,2]
[339967151,1728240640807,-482.700235,0.00013688,2]
[339967152,1728240640817,-151.0,0.00013688,2]
[339967153,1728240640830,-358.021121,0.00013688,2]
[339967154,1728240640843,-151.0,0.00013688,2]
[339967155,1728240640851,-151.0,0.00013688,2]
[339967156,1728240640859,-1147.974223,0.00013688,2]
[339967157,1728240640870,-1147.974223,0.00013688,2]
[339967158,1728240640879,-324.31089,0.00013688,2]
[339967159,1728240640888,-324.31089,0.00013688,2]
[339967160,1728240640897,-1090.769968,0.00013688,2]
[339967161,1728240640907,-1090.769968,0.00013688,2]
[339967162,1728240640916,-366.954406,0.00013688,2]
[339967163,1728240640925,-366.954406,0.00013688,2]
[339967164,1728240640935,-151.0,0.00013688,2]
[339967165,1728240640945,-1294.594829,0.00013688,2]
[339967166,1728240640955,-151.0,0.00013688,2]
[339967167,1728240640964,-1294.594829,0.00013688,2]
[339967168,1728240640974,-1049.129344,0.00013688,2]
[339967169,1728240640984,-1049.129344,0.00013688,2]
[339967170,1728240640994,-151.0,0.00013688,2]
[339967171,1728240641004,-151.0,0.00013688,2]
[339967172,1728240641014,-186.259172,0.00013688,2]
[339967173,1728240641023,-151.0,0.00013688,2]
[339967174,1728240641033,-186.259172,0.00013688,2]
[339967175,1728240641042,-151.0,0.00013688,2]
[339967176,1728240641052,-456.026816,0.00013688,2]
[339967177,1728240641061,-151.0,0.00013688,2]
[339967178,1728240641071,-456.026816,0.00013688,2]
[339967179,1728240641080,-223.277164,0.00013688,2]
[339967180,1728240641091,-204.303353,0.00013688,2]
[339967181,1728240641100,-204.303353,0.00013688,2]
[339967182,1728240641109,-1162.879787,0.00013688,2]
[339967183,1728240641120,-1162.879787,0.00013688,2]
[339967184,1728240641129,-175.340684,0.00013688,2]
[339967185,1728240641139,-175.340684,0.00013688,2]
[339967186,1728240641148,-151.0,0.00013688,2]
[339967187,1728240641158,-151.0,0.00013688,2]
[339967188,1728240641168,-151.0,0.00013688,2]
[339967189,1728240641178,-151.0,0.00013688,2]
[339967190,1728240641188,-1927.741753,0.00013688,2]
[339967191,1728240641198,-1927.741753,0.00013688,2]
[339967192,1728240641207,-151.0,0.00013688,2]
[339967193,1728240641218,-151.0,0.00013688,2]
[339967194,1728240641227,-151.0,0.00013688,2]
[339967195,1728240641237,-127040.48160204,0.00013688,2]
[339967196,1728240641260,-2835.74928141,0.00013688,2]
[339967197,1728240641273,-328.28270888,0.00013688,2]
[339967198,1728240641323,-6364.74689973,0.00013688,2]
[339967199,1728240641337,-603.72750034,0.00013688,2]
[339967201,1728240643281,-18.6004849,0.00013688,2]
[339967337,1728241832409,-162.3751,0.00012506,2]
[339967340,1728241832419,-676.61517139,0.00012536,4]
[339967341,1728241832429,-162.3751,0.00012636,2]
[339967342,1728241832438,-591.34222296,0.0001265,2]
[339967343,1728241832449,-162.3751,0.00012767,2]
[339967344,1728241832459,-162.3751,0.00012897,2]
[339967345,1728241832469,-500.0,0.0001292,2]
[339967346,1728241832478,-162.3751,0.00013027,2]
[339967347,1728241832487,-249.6202,0.00013096,2]
[339967348,1728241832498,-490.1864396,0.000131,2]
[339967349,1728241832508,-450.5526548,0.000131,2]
[339967350,1728241832518,-153.0,0.000131,2]
[339967351,1728241832530,-600.0,0.0001315,2]
[339967352,1728241832539,-162.3751,0.00013158,2]
[339967353,1728241832549,-163.774886,0.00013297,2]
[339967354,1728241832559,-197.293552,0.00013297,2]
[339967355,1728241832570,-197.293552,0.00013463,2]
[339967356,1728241832579,-974.67072125,0.00013527,2]
[339967378,1728241840234,-25.32927875,0.00013527,2]
[339967380,1728241840244,-300.0,0.00013565,2]
[339967382,1728241840254,-300.0,0.00013567,2]
[339967384,1728241840265,-211.40631741,0.00013588,2]
[339967387,1728241840276,-211.40631741,0.00013589,2]
[339967389,1728241840288,-197.293552,0.0001363,2]
[339967391,1728241840299,-514.57176425,0.0001363,2]
[339967393,1728241840309,-500.0,0.00013673,2]
[339967395,1728241840319,-500.0,0.00013673,2]
[339967397,1728241840332,-500.0,0.00013673,2]
[339967399,1728241840342,-500.0,0.00013673,2]
[339967401,1728241840351,-500.0,0.00013673,2]
[339967403,1728241840361,-500.0,0.00013673,2]
[339967406,1728241840372,-500.0,0.00013673,2]
[339967408,1728241840382,-183.046,0.00013678,2]
[339967410,1728241840393,-571.82434811,0.00013687,2]
[339967412,1728241840403,-243.45846913,0.00013687,2]
[339967414,1728241840414,-23634.3978515,0.00013688,2]
[339967416,1728241840424,-27713.58783824,0.00013688,2]
[339967418,1728241840437,-11.01295676,0.00013688,2]
[339967421,1728241840448,-2219.9157075,0.00013688,2]
[339967423,1728241840461,-1109.95785376,0.00013688,2]
[339967424,1728241840470,-9126.76842634,0.00013688,2]
[339967426,1728241840480,-554.97892688,0.00013688,2]
[339967428,1728241840490,-151.0,0.00013688,2]
[339967430,1728241840500,-151.0,0.00013688,2]
[339967432,1728241840511,-151.0,0.00013688,2]
[339967434,1728241840522,-1213.716171,0.00013688,2]
[339967436,1728241840532,-1213.716171,0.00013688,2]
[339967438,1728241840542,-456.026816,0.00013688,2]
[339967440,1728241840552,-456.026816,0.00013688,2]
[339967441,1728241840564,-151.0,0.00013688,2]
[339967442,1728241840575,-1162.879787,0.00013688,2]
[339967443,1728241840587,-151.0,0.00013688,2]
[339967444,1728241840598,-1162.879787,0.00013688,2]
[339967445,1728241840608,-212709.580664,0.00013688,2]
[339967446,1728241840620,-43056.73122305,0.00013688,2]
[339967447,1728241840656,-1004.23999584,0.00013688,2]
[339967459,1728241843327,-624.14406657,0.00013688,2]
[339967460,1728241843344,-4800.0,0.00013688,2]
[339967461,1728241843447,-99520.07300556,0.00013688,2]
[339967483,1728241846316,-20733.69423,0.00013688,2]
[339967484,1728241846403,-7733.7807593,0.00013688,2]
[339967488,1728242744157,-500.0,0.00011962,2]
[339967489,1728242744182,-500.0,0.00011962,2]
[339967490,1728242744207,-250.0000101,0.00011979,2]
[339967491,1728242744230,-1911.2762826,0.00012087,2]
[339967492,1728242744253,-300.0,0.0001263,2]
[339967493,1728242744277,-300.0,0.0001263,2]
[339967494,1728242744301,-24900.0,0.00012631,2]
[339967495,1728242744323,-500.0,0.0001292,2]
[339967496,1728242744346,-255.264337,0.00013096,2]
[339967497,1728242744369,-153.0,0.00013151,2]
[339967498,1728242744391,-341.62147821,0.00013399,2]
[339967499,1728242744413,-7194.09562255,0.00013399,2]
[339967500,1728242744436,-500.0,0.0001342,2]
[339967501,1728242744460,-786.59536117,0.00013498,2]
[339967502,1728242744482,-1680.73565789,0.00013588,2]
[339967503,1728242744504,-1005.08160565,0.00013592,2]